bitfinex-derivatives/quotes_SOLF0:USTF0_20240830
["timestamp","ask_amount","ask_price","bid_price","bid_amount"]
[1724996194325,0.04981384,138.42,138.39,0.05150874]
[1724996194932,0.04981384,138.42,138.41,3.6122]
[1724996197635,0.04981384,138.42,138.41,14.7222]
[1724996198935,5.06,138.49,138.44,3.6113]
[1724996199137,11.11,138.49,138.42,11.11]
[1724996199436,11.11,138.49,138.42,16.17]
[1724996200138,11.11,138.49,138.44,0.04651873]
[1724996200835,11.11,138.45,138.44,0.04651873]
[1724996201237,11.11,138.45,138.38,6.4526]
[1724996201434,11.11,138.42,138.38,1.3926]
[1724996201836,11.11,138.42,138.39,3.6126]
[1724996202236,11.15651873,138.42,138.39,3.66065452]
[1724996204645,0.04651873,138.42,138.39,0.04805452]
[1724996205033,0.04651873,138.42,138.39,11.15805452]
[1724996205741,0.04651873,138.42,138.41,3.6122]
[1724996209044,1.2968,138.5,138.42,27.74]
[1724996209338,29.0979,138.51,138.43,1.3403]
[1724996209741,1.3114,138.55,138.45,27.74]
[1724996209933,34.1114,138.55,138.46,0.04838094]
[1724996210136,27.74,138.53,138.49,0.05194226]
[1724996210635,27.74,138.51,138.49,0.05194226]
[1724996210837,1.3114,138.55,138.49,0.05194226]
[1724996211040,34.1114,138.55,138.49,0.05194226]
[1724996211539,3.6091,138.54,138.49,3.66204226]
[1724996211739,34.1114,138.55,138.49,3.66204226]
[1724996211937,3.6094,138.52,138.49,0.05194226]
[1724996212246,34.1114,138.55,138.49,0.05194226]
[1724996212543,3.6092,138.53,138.49,3.66204226]
[1724996212943,34.1114,138.55,138.49,3.66204226]
[1724996213444,3.6089,138.54,138.5,3.6098]
[1724996213947,1.3114,138.55,138.51,3.6096]
[1724996214135,29.106,138.59,138.49,5.11194226]
[1724996214342,34.166,138.59,138.53,0.05183013]
[1724996215143,35.02404315,138.59,138.54,3.6088]
[1724996215345,31.3477,138.59,138.54,3.6088]
[1724996215549,31.3477,138.59,138.55,3.6085]
[1724996215736,3.6077,138.59,138.55,3.6085]
[1724996217135,3.6077,138.59,138.54,3.6087]
[1724996217341,3.6078,138.58,138.54,3.6087]
[1724996218243,1.3115,138.6,138.53,0.05183013]
[1724996219449,3.6075,138.59,138.55,3.6085]
[1724996219648,3.6075,138.59,138.56,0.05267965]
[1724996220842,27.74,138.61,138.56,0.05267965]
[1724996221042,1.3149,138.63,138.56,27.79267965]
[1724996221941,29.0549,138.63,138.56,0.05267965]
[1724996222546,3.6069,138.62,138.57,3.6078]
[1724996223250,3.6071,138.61,138.56,3.66097965]
[1724996224055,27.74,138.61,138.56,0.05267965]
[1724996224446,3.6081,138.57,138.56,0.05267965]
[1724996224756,31.3281,138.57,138.56,0.05267965]
[1724996228445,3.6079,138.58,138.56,0.05267965]
[1724996228752,32.8,138.61,138.56,0.05267965]
[1724996229654,5.06,138.61,138.56,0.05267965]
[1724996229956,5.06,138.62,138.56,0.05267965]
[1724996230159,3.6072,138.61,138.56,3.66097965]
[1724996231453,1.3149,138.63,138.56,3.66097965]
[1724996231454,1.3149,138.63,138.56,0.05267965]
[1724996231648,27.74,138.62,138.56,0.05267965]
[1724996232055,3.6074,138.6,138.56,0.05267965]
[1724996233353,3.607,138.62,138.56,27.79267965]
[1724996234058,2.7163,138.65,138.56,27.79267965]
[1724996234059,3.6071,138.61,138.56,27.79267965]
[1724996234259,3.6071,138.61,138.57,0.04912874]
[1724996234557,27.74,138.64,138.57,0.04912874]
[1724996235661,3.6074,138.6,138.57,0.04912874]
[1724996235962,27.74,138.62,138.57,0.04912874]
[1724996236754,3.6078,138.58,138.57,0.04912874]
[1724996237651,3.6085,138.56,138.51,4.9993]
[1724996238558,0.04783203,138.55,138.52,0.04621596]
[1724996238858,27.78783203,138.55,138.52,0.04621596]
[1724996239257,3.6091,138.53,138.52,0.04621596]
[1724996240061,27.78783203,138.55,138.52,0.04621596]
[1724996240062,0.04783203,138.55,138.52,0.04621596]
[1724996240863,0.04783203,138.55,138.53,3.6091]
[1724996242262,0.04783203,138.55,138.54,3.6088]
[1724996242559,1.2805,138.64,138.54,3.65706171]
[1724996242766,27.74,138.65,138.56,27.74]
[1724996242959,2.6865,138.67,138.56,27.74]
[1724996243160,3.6065,138.63,138.56,27.74]
[1724996243361,3.6065,138.63,138.58,3.6076]
[1724996243557,3.6065,138.63,138.59,0.05379586]
[1724996246163,3.6068,138.62,138.59,0.05379586]
[1724996247970,6.25623105,138.67,138.59,0.05379586]
[1724996248166,11.31623105,138.67,138.59,0.05379586]
[1724996248367,6.25623105,138.67,138.59,0.05379586]
[1724996248672,2.6865,138.67,138.6,27.74]
[1724996248970,3.606,138.65,138.62,0.05549148]
[1724996251273,27.74,138.66,138.62,0.05549148]
[1724996252061,5.06,138.68,138.62,0.05549148]
[1724996252370,3.57142857,138.68,138.62,0.05549148]
[1724996252564,27.74,138.67,138.62,0.05549148]
[1724996252770,3.6064,138.64,138.63,0.05477062]
[1724996253167,32.8,138.67,138.63,0.05477062]
[1724996253371,27.74,138.66,138.63,0.05477062]
[1724996253574,32.69845844,138.66,138.63,0.05477062]
[1724996254072,27.74,138.64,138.56,4.8895]
[1724996254369,27.74,138.64,138.45,7.222]
[1724996254370,3.6085,138.56,138.5,60.2097]
[1724996254570,3.6085,138.56,138.5,32.8]
[1724996254775,3.6085,138.56,138.5,27.74]
[1724996254973,0.05012324,138.54,138.52,0.05019106]
[1724996257075,3.65892324,138.54,138.52,0.05019106]
[1724996258277,0.05012324,138.54,138.52,0.05019106]
[1724996258876,0.05012324,138.54,138.52,3.65929106]
[1724996259179,0.05012324,138.54,138.52,0.05019106]
[1724996260379,0.05012324,138.54,138.52,3.65939106]
[1724996261177,0.05012324,138.54,138.52,0.05019106]
[1724996262475,0.05012324,138.54,138.52,3.65959106]
[1724996262780,0.05012324,138.54,138.52,0.05019106]
[1724996263884,0.05012324,138.54,138.53,3.6091]
[1724996265282,3.6078,138.58,138.54,3.6088]
[1724996265476,3.6078,138.58,138.52,0.05019106]
[1724996265876,3.6078,138.58,138.54,3.6087]
[1724996266076,3.6081,138.57,138.54,3.6087]
[1724996266283,3.6081,138.57,138.54,0.04621479]
[1724996266679,3.6086,138.55,138.54,0.04621479]
[1724996266877,3.6086,138.55,138.53,0.05123325]
[1724996267578,3.62721039,138.59,138.53,0.05123325]
[1724996267579,3.6088,138.54,138.53,0.05123325]
[1724996270688,27.74,138.54,138.43,27.74]
[1724996270980,27.74,138.52,138.43,30.4503]
[1724996271283,3.6103,138.49,138.44,3.6112]
[1724996271470,5.04,138.52,138.44,27.74]
[1724996271669,27.74,138.53,138.44,27.74]
[1724996271670,0.05144468,138.49,138.47,0.05002919]
[1724996276181,3.66164468,138.49,138.47,0.05002919]
[1724996276575,0.05144468,138.49,138.47,0.05002919]
[1724996277287,3.6104,138.48,138.47,0.05002919]
[1724996280083,0.05144468,138.49,138.47,0.05002919]
[1724996280876,0.05144468,138.49,138.47,3.66062919]
[1724996283686,227.60721039,138.59,138.47,0.05002919]
[1724996283886,34.1071,138.57,138.48,27.74]
[1724996284188,34.1071,138.57,138.49,1.3223]
[1724996284483,34.1071,138.57,138.49,2.7181]
[1724996284683,34.1071,138.57,138.52,0.04716275]
[1724996285084,1.3071,138.57,138.52,0.04716275]
[1724996285286,3.6088,138.55,138.52,0.04716275]
[1724996285785,1.3071,138.57,138.52,0.04716275]
[1724996285985,3.6085,138.56,138.52,3.65656275]
[1724996286387,3.6082,138.57,138.53,3.6091]
[1724996286580,27.74,138.56,138.52,0.04716275]
[1724996286887,27.74,138.54,138.52,0.04716275]
[1724996287581,3.6091,138.53,138.52,0.04716275]
[1724996288888,3.6089,138.54,138.52,0.04716275]
[1724996289303,32.8,138.56,138.52,0.04716275]
[1724996289497,3.6087,138.55,138.52,0.04716275]
[1724996289789,27.74,138.56,138.52,0.04716275]
[1724996289992,3.6088,138.54,138.52,0.04716275]
[1724996290191,27.74,138.56,138.52,0.04716275]
[1724996290392,27.74,138.58,138.52,0.04716275]
[1724996290699,3.6085,138.56,138.52,0.04716275]
[1724996292189,3.6091,138.53,138.52,0.04716275]
[1724996292890,8.6691,138.53,138.52,0.04716275]
[1724996293095,3.6091,138.53,138.52,0.04716275]
[1724996293292,8.6691,138.53,138.52,0.04716275]
[1724996293489,3.6091,138.53,138.52,0.04716275]
[1724996294297,5.06,138.55,138.52,0.04716275]
[1724996294495,27.74,138.56,138.52,0.04716275]
[1724996294693,32.8,138.56,138.52,0.04716275]
[1724996295000,3.6091,138.53,138.52,0.04716275]
[1724996296097,3.6089,138.54,138.52,0.04716275]
[1724996296699,27.74,138.56,138.52,0.04716275]
[1724996296899,32.8,138.56,138.52,0.04716275]
[1724996297396,3.609,138.54,138.52,0.04716275]
[1724996299401,27.74,138.56,138.52,0.04716275]
[1724996299601,2.6914,138.6,138.52,0.04716275]
[1724996300398,27.74,138.62,138.53,3.64604389]
[1724996300604,27.74,138.64,138.56,0.05265505]
[1724996300801,27.74,138.64,138.59,0.05354816]
[1724996301102,3.607,138.62,138.59,0.05354816]
[1724996301399,32.78,138.64,138.59,0.05354816]
[1724996301400,27.74,138.64,138.59,0.05354816]
[1724996301605,27.74,138.62,138.59,0.05354816]
[1724996302407,3.607,138.61,138.59,0.05354816]
[1724996302799,3.6073,138.6,138.59,0.05354816]
[1724996304007,31.3473,138.6,138.59,0.05354816]
[1724996306601,27.74,138.6,138.52,5.04]
[1724996306999,27.74,138.6,138.51,32.78]
[1724996307201,3.6079,138.58,138.51,32.78]
[1724996307402,27.74,138.6,138.51,32.78]
[1724996307604,27.74,138.6,138.54,0.04848727]
[1724996307805,0.04715296,138.57,138.54,0.04848727]
[1724996309308,3.607,138.62,138.55,27.74]
[1724996309511,3.607,138.62,138.55,34.139]
[1724996309908,3.6066,138.63,138.58,3.6077]
[1724996310305,3.64436746,138.66,138.59,3.6540885]
[1724996310512,3.6063,138.64,138.59,3.6540885]
[1724996311211,3.6063,138.64,138.6,3.6072]
[1724996311414,2.6266,138.7,138.59,0.0466885]
[1724996311415,1.2761,138.7,138.62,27.74]
[1724996311710,1.2761,138.7,138.65,0.04930849]
[1724996311711,27.74,138.68,138.65,0.04930849]
[1724996311919,3.6055,138.67,138.65,0.04930849]
[1724996312220,29.0161,138.7,138.65,0.04930849]
[1724996312618,28.86,138.81,138.65,0.04930849]
[1724996312619,28.86,138.81,138.65,5.08930849]
[1724996312816,27.74,138.73,138.7,0.04948568]
[1724996313015,27.74,138.71,138.7,0.04948568]
[1724996314917,3.6042,138.72,138.7,0.04948568]
[1724996315318,3.6039,138.73,138.7,0.04948568]
[1724996315814,3.6042,138.72,138.7,0.04948568]
[1724996316520,223.98,138.82,138.7,0.04948568]
[1724996316715,223.98,138.82,138.69,27.74]
[1724996316716,29.0592,138.79,138.75,0.05136008]
[1724996316923,32.69860817,138.79,138.75,0.05136008]
[1724996317719,3.6031,138.77,138.75,0.05136008]
[1724996321028,32.78,138.77,138.34,9.45287098]
[1724996321224,27.74,138.74,138.69,3.6049]
[1724996321820,3.6036,138.75,138.69,3.6049]
[1724996322021,0.04620766,138.73,138.71,0.04710932]
[1724996323127,3.6042,138.72,138.71,0.04710932]
[1724996323424,0.04620766,138.73,138.71,0.04710932]
[1724996325427,3.6042,138.72,138.71,0.04710932]
[1724996327224,3.65020766,138.73,138.71,0.04710932]
[1724996328427,3.6042,138.72,138.71,0.04710932]
[1724996331030,0.04620766,138.73,138.71,0.04710932]
[1724996331729,3.6042,138.72,138.71,0.04710932]
[1724996332332,223.98,138.87,138.71,32.82710932]
[1724996332527,27.74,138.83,138.74,27.74]
[1724996332927,3.6023,138.8,138.74,31.3436]
[1724996333231,5.04,138.83,138.74,27.74]
[1724996333432,5.04,138.83,138.76,0.05205484]
[1724996333636,3.6019,138.81,138.76,3.65495484]
[1724996335238,3.6022,138.8,138.76,0.05205484]
[1724996336639,3.6023,138.79,138.76,0.05205484]
[1724996337331,5.04,138.81,138.76,0.05205484]
[1724996337332,3.6026,138.78,138.76,0.05205484]
[1724996337638,31.42044771,138.8,138.76,0.05205484]
[1724996337837,32.76864771,138.8,138.76,0.05205484]
[1724996338030,3.6024,138.79,138.76,0.05205484]
[1724996338629,3.6027,138.78,138.76,0.05205484]
[1724996338937,32.60831494,138.8,138.76,0.05205484]
[1724996339238,3.6028,138.78,138.76,0.05205484]
[1724996339435,32.60831494,138.8,138.76,0.05205484]
[1724996339831,3.6029,138.77,138.76,0.05205484]
[1724996340232,3.6038,138.74,138.68,32.78]
[1724996340432,3.6038,138.74,138.68,27.74]
[1724996340729,3.6038,138.74,138.68,31.345]
[1724996341231,3.6038,138.74,138.7,0.04762646]
[1724996341232,0.04971669,138.72,138.7,0.04762646]
[1724996343945,0.04971669,138.72,138.7,27.78762646]
[1724996344952,0.04971669,138.72,138.7,31.39222646]
[1724996345252,0.04971669,138.72,138.71,3.6044]
[1724996345741,0.04971669,138.72,138.7,27.78762646]
[1724996345742,29.0882,138.8,138.7,27.74]
[1724996345945,3.603,138.77,138.72,3.6041]
[1724996346336,37.79664495,138.8,138.72,3.6041]
[1724996346540,37.79664495,138.8,138.75,0.05239782]
[1724996346743,3.603,138.77,138.75,0.05239782]
[1724996348843,3.6031,138.76,138.75,0.05239782]
[1724996351954,32.78,138.76,138.68,1.2826]
[1724996352148,4.89873146,138.8,138.62,2.6874]
[1724996352149,27.74,138.74,138.62,2.6874]
[1724996352454,32.78,138.74,138.64,27.74]
[1724996352652,27.74,138.72,138.62,4.0277]
[1724996352846,27.74,138.7,138.62,31.7677]
[1724996353047,3.65381313,138.67,138.65,0.04677226]
[1724996353460,0.04831313,138.67,138.65,0.04677226]
[1724996353849,3.6057,138.66,138.65,0.04677226]
[1724996358557,0.04831313,138.67,138.65,0.04677226]
[1724996358758,2.7388,138.77,138.66,27.74]
[1724996358952,3.63449469,138.76,138.68,27.74]
[1724996359456,8.67449469,138.76,138.68,27.74]
[1724996359661,0.02234818,138.73,138.71,0.04915341]
[1724996363757,0.02234818,138.73,138.72,3.6042]
[1724996363956,0.02234818,138.73,138.72,4.9534]
[1724996364156,0.02234818,138.73,138.72,1.3492]
[1724996367959,0.02234818,138.73,138.71,0.04915341]
[1724996369670,0.02234818,138.73,138.71,3.65355341]
[1724996371164,3.62634818,138.73,138.71,0.04915341]
[1724996371366,0.02234818,138.73,138.71,0.04915341]
[1724996371665,3.6042,138.72,138.71,0.04915341]
[1724996372066,2.6042,138.72,138.71,0.04915341]
[1724996375669,0.02234818,138.73,138.71,0.04915341]
[1724996376668,3.62644818,138.73,138.71,0.04915341]
[1724996377365,3.6042,138.72,138.71,0.04915341]
[1724996383478,0.02234818,138.73,138.66,28.977]
[1724996383479,3.6045,138.71,138.66,28.977]
[1724996384172,3.6045,138.71,138.66,32.5827]
[1724996384573,0.0493129,138.7,138.67,0.0542181]
[1724996384976,0.0493129,138.7,138.67,3.6596181]
[1724996386978,3.6540129,138.7,138.67,0.0542181]
[1724996387284,0.0493129,138.7,138.67,0.0542181]
[1724996387486,3.6052,138.68,138.67,0.0542181]
[1724996388479,3.605,138.69,138.67,0.0542181]
[1724996388675,0.0493129,138.7,138.67,0.0542181]
[1724996389585,3.6052,138.68,138.67,0.0542181]
[1724996404303,5.04,138.69,138.67,0.0542181]
[1724996404503,0.0493129,138.7,138.67,0.0542181]
[1724996405404,3.605,138.69,138.67,0.0542181]
[1724996406109,3.6052,138.68,138.67,0.0542181]
[1724996410009,14.6852,138.68,138.67,0.0542181]
[1724996410702,11.08,138.68,138.61,1.2982]
[1724996410907,1.3962,138.72,138.61,1.2982]
[1724996410908,11.08,138.65,138.61,1.2982]
[1724996411320,3.6067,138.63,138.61,1.2982]
[1724996411814,3.6067,138.63,138.61,1.34545569]
[1724996411815,3.65828283,138.63,138.61,1.34545569]
[1724996413508,0.05158283,138.63,138.61,0.04725569]
[1724996413820,0.05158283,138.63,138.62,11.08]
[1724996414012,3.6055,138.67,138.62,31.2868]
[1724996415015,0.05444934,138.66,138.63,0.04998418]
[1724996415607,0.05444934,138.66,138.63,3.65638418]
[1724996417121,0.05444934,138.66,138.63,0.04998418]
[1724996418618,0.05444934,138.66,138.64,27.68]
[1724996418823,0.05444934,138.66,138.65,3.606]
[1724996420116,0.05444934,138.66,138.64,32.648]
[1724996421613,0.05444934,138.66,138.65,3.606]
[1724996422724,3.605,138.69,138.65,3.606]
[1724996423222,3.6047,138.7,138.66,3.6057]
[1724996423517,1.2926,138.73,138.65,27.68]
[1724996423719,3.6046,138.71,138.66,3.6057]
[1724996423917,3.6046,138.71,138.68,0.05482155]
[1724996425428,28.9726,138.73,138.68,0.05482155]
[1724996425616,34.0126,138.73,138.68,0.05482155]
[1724996425817,5.04,138.72,138.68,0.05482155]
[1724996426723,3.6048,138.7,138.68,0.05482155]
[1724996428821,3.6045,138.71,138.68,0.05482155]
[1724996431326,62.72391435,138.81,138.68,27.73482155]
[1724996431527,27.68,138.79,138.72,0.05376911]
[1724996431721,23.8107797,138.78,138.72,0.05376911]
[1724996432119,3.61804153,138.78,138.72,0.05376911]
[1724996432324,3.6034,138.75,138.72,0.05376911]
[1724996436031,3.6034,138.75,138.72,11.13376911]
[1724996436427,3.6031,138.76,138.73,11.08]
[1724996438334,3.603,138.77,138.73,11.08]
[1724996438539,3.603,138.77,138.74,0.05170632]
[1724996440041,3.6024,138.79,138.74,3.65530632]
[1724996440838,3.6027,138.78,138.75,11.08]
[1724996444141,2.6816,138.8,138.75,11.08]
[1724996444841,11.08,138.79,138.74,0.05170632]
[1724996445140,11.08,138.77,138.74,0.05170632]
[1724996445340,11.08,138.77,138.55,7.52501581]
[1724996445341,11.08,138.75,138.6,1.2986]
[1724996445647,11.08,138.72,138.65,14.6858]
[1724996445831,3.6046,138.71,138.65,14.6858]
[1724996446438,0.05395906,138.69,138.67,0.05022883]
[1724996446738,0.05395906,138.69,138.67,3.65562883]
[1724996447140,0.05395906,138.69,138.67,0.05022883]
[1724996447544,0.05395906,138.69,138.67,11.13022883]
[1724996450043,0.05395906,138.69,138.67,0.05022883]
[1724996456552,11.13395906,138.69,138.67,0.05022883]
[1724996457450,3.6059,138.66,138.62,3.6067]
[1724996457652,11.08,138.67,138.61,1.4118]
[1724996457853,1.3903,138.69,138.61,12.4918]
[1724996458053,3.6058,138.66,138.62,3.6067]
[1724996458448,0.04719042,138.65,138.63,0.04739057]
[1724996458957,3.65319042,138.65,138.63,0.04739057]
[1724996459450,3.6062,138.64,138.63,0.04739057]
[1724996460249,3.65319042,138.65,138.63,0.04739057]
[1724996460453,0.04719042,138.65,138.63,0.04739057]
[1724996460956,0.04719042,138.65,138.64,3.6062]
[1724996461151,0.04719042,138.65,138.63,11.12739057]
[1724996461350,0.04719042,138.65,138.63,16.14739057]
[1724996461657,0.04719042,138.65,138.64,3.6364917]
[1724996462049,0.04719042,138.65,138.63,16.14739057]
[1724996462354,0.04719042,138.65,138.63,5.06739057]
[1724996463048,0.04719042,138.65,138.63,0.04739057]
[1724996464152,3.6062,138.64,138.63,0.04739057]
[1724996464563,3.6071,138.61,138.58,5.02]
[1724996465558,3.6071,138.61,138.58,5.07394047]
[1724996465559,3.65291559,138.61,138.58,5.07394047]
[1724996465963,3.65291559,138.61,138.58,0.05394047]
[1724996466961,3.6075,138.59,138.58,0.05394047]
[1724996467157,0.04581559,138.61,138.58,0.05394047]
[1724996468358,3.6074,138.6,138.58,0.05394047]
[1724996468956,3.65291559,138.61,138.58,0.05394047]
[1724996469557,0.04581559,138.61,138.58,0.05394047]
[1724996470663,3.65301559,138.61,138.58,0.05394047]
[1724996471059,3.6075,138.6,138.58,0.05394047]
[1724996471857,3.6075,138.59,138.58,0.05394047]
[1724996473067,0.04581559,138.61,138.58,0.05394047]
[1724996473659,3.6075,138.59,138.58,0.05394047]
[1724996474263,3.6079,138.58,138.54,3.6087]
[1724996475264,3.6076,138.59,138.55,3.6582541]
[1724996475463,0.04979042,138.57,138.55,3.6582541]
[1724996476875,0.04979042,138.57,138.55,0.0497541]
[1724996478276,0.04979042,138.57,138.55,3.6583541]
[1724996483586,0.04979042,138.57,138.55,0.0497541]
[1724996484779,0.04979042,138.57,138.55,3.6583541]
[1724996485996,0.04979042,138.57,138.56,14.6883]
[1724996492384,0.04979042,138.57,138.55,3.6582541]
[1724996492684,0.04979042,138.57,138.55,14.7382541]
[1724996492876,0.04979042,138.57,138.56,3.6083]
[1724996493881,0.04979042,138.57,138.56,14.6883]
[1724996494186,3.6067,138.63,138.56,11.08]
[1724996494486,3.6067,138.63,138.57,11.08]
[1724996494681,3.6067,138.63,138.58,7.2857153]
[1724996495083,0.04771224,138.62,138.59,0.0530493]
[1724996495287,0.04771224,138.62,138.59,3.6605493]
[1724996497090,0.04771224,138.62,138.6,3.6072]
[1724996497389,0.04771224,138.62,138.61,11.08]
[1724996498191,0.04771224,138.62,138.61,14.687]
[1724996518908,0.04771224,138.62,138.6,8.6271]
[1724996519405,0.04771224,138.62,138.6,3.6071]
[1724996519607,0.04771224,138.62,138.61,3.607]
[1724996520512,0.04771224,138.62,138.59,11.1330493]
[1724996520700,0.04771224,138.62,138.59,16.1530493]
[1724996521106,0.04771224,138.62,138.59,11.1330493]
[1724996522010,0.04771224,138.62,138.59,16.1530493]
[1724996522311,0.04771224,138.62,138.6,3.6073]
[1724996523111,0.04771224,138.62,138.59,0.0530493]
[1724996523714,3.65461224,138.62,138.59,0.0530493]
[1724996524211,3.607,138.61,138.59,0.0530493]
[1724996525326,3.6073,138.6,138.59,0.0530493]
[1724996526311,3.6073,138.6,138.5,3.53949455]
[1724996526312,11.08,138.6,138.5,3.53949455]
[1724996526518,11.08,138.57,138.5,11.08]
[1724996526711,14.6882,138.57,138.5,14.74242861]
[1724996526917,14.6882,138.57,138.51,5.02]
[1724996527214,0.05135232,138.55,138.53,0.0536351]
[1724996528106,11.08,138.54,138.53,0.0536351]
[1724996528508,14.6888,138.54,138.53,0.0536351]
[1724996529817,3.6092,138.53,138.49,85.70604368]
[1724996530613,3.6092,138.53,138.5,0.04867258]
[1724996536013,3.6095,138.52,138.5,0.04867258]
[1724996540213,3.6096,138.51,138.5,0.04867258]
[1724996541724,0.05541841,138.52,138.5,0.04867258]
[1724996543223,3.66481841,138.52,138.5,0.04867258]
[1724996544025,0.05541841,138.52,138.5,0.04867258]
[1724996545216,11.08,138.51,138.5,0.04867258]
[1724996545918,11.08,138.51,138.41,1.3321]
[1724996546226,44.32,138.54,138.41,1.3321]
[1724996546227,11.08,138.46,138.41,1.3321]
[1724996546417,11.08,138.47,138.42,3.52332652]
[1724996546722,14.6909,138.47,138.42,7.13522652]
[1724996546925,0.04650274,138.46,138.43,0.05000747]
[1724996547321,0.04650274,138.46,138.43,11.13000747]
[1724996547922,0.04650274,138.46,138.44,3.6113]
[1724996548327,0.04650274,138.46,138.43,11.13000747]
[1724996548724,0.04650274,138.46,138.43,14.74150747]
[1724996549128,0.04650274,138.46,138.43,11.13000747]
[1724996549534,0.04650274,138.46,138.44,3.6113]
[1724996550623,0.04650274,138.46,138.45,3.6112]
[1724996554236,0.04650274,138.46,138.44,11.08]
[1724996555332,0.04650274,138.46,138.44,14.6913]
[1724996556743,0.04650274,138.46,138.45,14.6912]
[1724996556939,0.04650274,138.46,138.44,11.08]
[1724996557333,0.04650274,138.46,138.45,3.6112]
[1724996560540,0.04650274,138.46,138.43,0.05000747]
[1724996561035,0.04650274,138.46,138.44,3.6113]
[1724996561934,0.04650274,138.46,138.45,3.6112]
[1724996562534,0.04650274,138.46,138.44,3.6114]
[1724996562934,0.04650274,138.46,138.43,3.66160747]
[1724996563244,0.04650274,138.46,138.43,0.05000747]
[1724996563436,3.65740274,138.46,138.43,0.05000747]
[1724996563740,14.73740274,138.46,138.43,0.05000747]
[1724996564940,14.6913,138.45,138.43,0.05000747]
[1724996565441,11.08,138.45,138.37,3.65504043]
[1724996565636,11.08,138.45,138.35,3.9187]
[1724996565637,11.08,138.42,138.36,11.08]
[1724996565935,11.08,138.42,138.37,3.5636915]
[1724996566341,14.692,138.42,138.37,7.1768915]
[1724996566542,0.050839,138.41,138.38,0.05095968]
[1724996566842,0.050839,138.41,138.39,11.08]
[1724996567739,0.050839,138.41,138.39,14.6927]
[1724996568841,0.050839,138.41,138.39,11.08]
[1724996571335,0.050839,138.41,138.39,14.6927]
[1724996573634,65.70420503,138.54,138.4,11.08]
[1724996573842,6.3132,138.5,138.43,11.08]
[1724996574141,3.6105,138.48,138.43,11.08]
[1724996574743,0.05126044,138.47,138.44,0.04976064]
[1724996576354,0.05126044,138.47,138.44,3.66106064]
[1724996577540,0.05126044,138.47,138.44,0.04976064]
[1724996577940,0.05126044,138.47,138.44,3.66116064]
[1724996578535,0.05126044,138.47,138.44,0.04976064]
[1724996580540,11.13126044,138.47,138.44,0.04976064]
[1724996580740,11.08,138.45,138.44,0.04976064]
[1724996581140,14.6912,138.45,138.44,0.04976064]
[1724996581342,11.08,138.45,138.39,3.6127]
[1724996581542,11.08,138.44,138.39,3.6127]
[1724996581958,14.6915,138.44,138.39,3.6127]
[1724996582242,0.04690666,138.43,138.4,0.04550477]
[1724996582447,3.65860666,138.43,138.4,0.04550477]
[1724996583751,0.04690666,138.43,138.4,0.04550477]
[1724996585846,0.04690666,138.43,138.4,3.65800477]
[1724996586044,0.04690666,138.43,138.4,11.12550477]
[1724996586454,0.04690666,138.43,138.41,3.6122]
[1724996588754,0.04690666,138.43,138.4,11.12550477]
[1724996589356,0.04690666,138.43,138.41,3.6121]
[1724996591552,0.04690666,138.43,138.4,14.73790477]
[1724996591757,0.04690666,138.43,138.4,0.04550477]
[1724996592250,11.12690666,138.43,138.4,0.04550477]
[1724996593355,3.612,138.42,138.4,0.04550477]
[1724996602066,14.6922,138.41,138.4,0.04550477]
[1724996602370,14.73508272,138.41,138.34,89.13681513]
[1724996602673,11.08,138.4,138.34,100.21681513]
[1724996602859,3.6129,138.39,138.34,103.83071513]
[1724996603161,3.6129,138.39,138.35,0.04549271]
[1724996603365,0.04923405,138.38,138.35,0.04549271]
[1724996604069,0.04923405,138.38,138.35,3.65919271]
[1724996604766,0.04923405,138.38,138.35,0.04549271]
[1724996605462,3.66243405,138.38,138.35,0.04549271]
[1724996605663,0.04923405,138.38,138.35,0.04549271]
[1724996605863,11.12923405,138.38,138.35,0.04549271]
[1724996606266,3.6135,138.37,138.35,0.04549271]
[1724996606463,11.12923405,138.38,138.35,0.04549271]
[1724996606864,3.6135,138.36,138.35,0.04549271]
[1724996607357,14.6935,138.36,138.35,0.04549271]
[1724996607564,16.1,138.36,138.28,7.15037604]